[Event "*** Titled Tuesday Blitz"]
[Site "Chess.com"]
[Date "2021.03.02"]
[Round "8"]
[White "shnitez"]
[Black "ChessFighter1975"]
[Result "0-1"]
[WhiteElo "2491"]
[BlackElo "2354"]
[TimeControl "180+1"]
[EndTime "11:32:20 PST"]
[Termination "ChessFighter1975 won by checkmate"]

1. c4 {[%clk 0:03:00.6]} 1... d6 {[%clk 0:03:00.2]} 2. Nc3 {[%clk 0:02:58.9]}
2... Nf6 {[%clk 0:03:00.1]} 3. g3 {[%clk 0:02:59.3]} 3... g6 {[%clk 0:03:00.1]}
4. Bg2 {[%clk 0:02:59.8]} 4... Bg7 {[%clk 0:03:00.8]} 5. e4 {[%clk 0:03:00.4]}
5... O-O {[%clk 0:03:01.3]} 6. Nge2 {[%clk 0:03:01.3]} 6... e5 {[%clk
0:03:01.2]} 7. O-O {[%clk 0:03:01.1]} 7... c5 {[%clk 0:03:01.8]} 8. d3 {[%clk
0:03:00.8]} 8... Nc6 {[%clk 0:03:02.2]} 9. h3 {[%clk 0:03:01.3]} 9... h6 {[%clk
0:03:01.8]} 10. f4 {[%clk 0:03:00.2]} 10... Nd4 {[%clk 0:03:01.9]} 11. Nxd4
{[%clk 0:02:41.3]} 11... cxd4 {[%clk 0:03:01.6]} 12. Nb1 {[%clk 0:02:35.9]}
12... Nh5 {[%clk 0:02:52.1]} 13. Kh2 {[%clk 0:02:20.2]} 13... exf4 {[%clk
0:02:40.2]} 14. gxf4 {[%clk 0:02:17.8]} 14... f5 {[%clk 0:02:39.5]} 15. exf5
{[%clk 0:02:08.8]} 15... Bxf5 {[%clk 0:02:37.7]} 16. Bxb7 {[%clk 0:02:03.7]}
16... Qh4 {[%clk 0:02:30.7]} 17. Qf3 {[%clk 0:01:47.4]} 17... Rab8 {[%clk
0:02:20.5]} 18. Bd5+ {[%clk 0:01:46.6]} 18... Kh7 {[%clk 0:02:20.8]} 19. b3
{[%clk 0:01:24.3]} 19... Rbe8 {[%clk 0:02:20.9]} 20. a3 {[%clk 0:00:47.2]} 20...
Re3 {[%clk 0:02:06.7]} 21. Bxe3 {[%clk 0:00:43.9]} 21... dxe3 {[%clk 0:02:07.6]}
22. Ra2 {[%clk 0:00:42.7]} 22... Nxf4 {[%clk 0:02:08.2]} 23. Qg3 {[%clk
0:00:29.2]} 23... e2 {[%clk 0:01:42]} 24. Re1 {[%clk 0:00:20.1]} 24... Qh5
{[%clk 0:01:36.3]} 25. Bf3 {[%clk 0:00:17]} 25... Qxh3+ {[%clk 0:01:31.2]} 26.
Qxh3 {[%clk 0:00:16.6]} 26... Bxh3 {[%clk 0:01:28.8]} 27. Be4 {[%clk 0:00:15.3]}
27... Bf5 {[%clk 0:01:24.5]} 28. Raxe2 {[%clk 0:00:14]} 28... Nxe2 {[%clk
0:01:22.7]} 29. Rxe2 {[%clk 0:00:14.9]} 29... Bxe4 {[%clk 0:01:22]} 30. dxe4
{[%clk 0:00:14.5]} 30... Rf3 {[%clk 0:01:17.8]} 31. b4 {[%clk 0:00:12]} 31...
Be5+ {[%clk 0:01:16]} 32. Kg2 {[%clk 0:00:12.4]} 32... Rg3+ {[%clk 0:01:14.8]}
33. Kf2 {[%clk 0:00:12.5]} 33... Rb3 {[%clk 0:01:14.7]} 34. Nd2 {[%clk 0:00:11]}
34... Rxa3 {[%clk 0:01:13.8]} 35. Nf3 {[%clk 0:00:11.3]} 35... Bf4 {[%clk
0:01:10.1]} 36. e5 {[%clk 0:00:07.3]} 36... dxe5 {[%clk 0:01:08]} 37. Nxe5
{[%clk 0:00:08.2]} 37... g5 {[%clk 0:01:06.8]} 38. c5 {[%clk 0:00:07.8]} 38...
Rc3 {[%clk 0:01:02.8]} 39. Nf3 {[%clk 0:00:04.9]} 39... h5 {[%clk 0:01:01.1]}
40. Re6 {[%clk 0:00:03.6]} 40... g4 {[%clk 0:00:58.4]} 41. Nd4 {[%clk
0:00:03.6]} 41... g3+ {[%clk 0:00:53.2]} 42. Kg2 {[%clk 0:00:03.5]} 42... h4
{[%clk 0:00:53.2]} 43. Nf5 {[%clk 0:00:02.1]} 43... Rc2+ {[%clk 0:00:52.9]} 44.
Kh3 {[%clk 0:00:02.2]} 44... g2 {[%clk 0:00:51]} 45. Re1 {[%clk 0:00:01.7]}
45... Bd2 {[%clk 0:00:44.4]} 46. Rg1 {[%clk 0:00:01.3]} 46... Bxb4 {[%clk
0:00:40.8]} 47. Rxg2 {[%clk 0:00:02.2]} 47... Rxg2 {[%clk 0:00:40]} 48. Kxg2
{[%clk 0:00:03.1]} 48... Bxc5 {[%clk 0:00:40.9]} 49. Nxh4 {[%clk 0:00:02.8]}
49... a5 {[%clk 0:00:38.4]} 50. Kf3 {[%clk 0:00:03.1]} 50... a4 {[%clk
0:00:39.3]} 51. Ke2 {[%clk 0:00:03.2]} 51... a3 {[%clk 0:00:39.6]} 52. Nf3
{[%clk 0:00:02.1]} 52... a2 {[%clk 0:00:39.2]} 53. Ng5+ {[%clk 0:00:03]} 53...
Kg6 {[%clk 0:00:37.9]} 54. Ne4 {[%clk 0:00:03.9]} 54... a1=Q {[%clk 0:00:38.6]}
55. Nxc5 {[%clk 0:00:04.1]} 55... Qa2+ {[%clk 0:00:37.8]} 56. Kd3 {[%clk
0:00:02.4]} 56... Qa3+ {[%clk 0:00:37.4]} 57. Kc4 {[%clk 0:00:03.3]} 57... Qa2+
{[%clk 0:00:37.4]} 58. Kd4 {[%clk 0:00:03]} 58... Qa1+ {[%clk 0:00:37.2]} 59.
Kd5 {[%clk 0:00:03.1]} 59... Kf5 {[%clk 0:00:36.9]} 60. Kc6 {[%clk 0:00:02.8]}
60... Qc1 {[%clk 0:00:36.8]} 61. Kb5 {[%clk 0:00:03.5]} 61... Qb1+ {[%clk
0:00:34.9]} 62. Kc4 {[%clk 0:00:03.4]} 62... Ke5 {[%clk 0:00:35.8]} 63. Nd3+
{[%clk 0:00:03.4]} 63... Ke4 {[%clk 0:00:35.2]} 64. Nc5+ {[%clk 0:00:03.9]}
64... Ke3 {[%clk 0:00:35.4]} 65. Kd5 {[%clk 0:00:04.1]} 65... Qd1+ {[%clk
0:00:35.1]} 66. Kc6 {[%clk 0:00:04.5]} 66... Kd4 {[%clk 0:00:34.8]} 67. Ne6+
{[%clk 0:00:04.4]} 67... Kc4 {[%clk 0:00:34.8]} 68. Nc7 {[%clk 0:00:04.8]} 68...
Qh1+ {[%clk 0:00:34.1]} 69. Kd6 {[%clk 0:00:05.2]} 69... Qh6+ {[%clk 0:00:32.7]}
70. Kd7 {[%clk 0:00:04.6]} 70... Kc5 {[%clk 0:00:32.7]} 71. Ne8 {[%clk
0:00:04.8]} 71... Qh7+ {[%clk 0:00:32.3]} 72. Ke6 {[%clk 0:00:04.5]} 72... Kc6
{[%clk 0:00:31.3]} 73. Nf6 {[%clk 0:00:04.3]} 73... Qh6 {[%clk 0:00:31.2]} 74.
Ke5 {[%clk 0:00:04.2]} 74... Qg5+ {[%clk 0:00:30.7]} 75. Ke6 {[%clk 0:00:04.4]}
75... Qg1 {[%clk 0:00:31.5]} 76. Ke5 {[%clk 0:00:04.1]} 76... Qe1+ {[%clk
0:00:31.6]} 77. Ne4 {[%clk 0:00:03.6]} 77... Qe3 {[%clk 0:00:29.9]} 78. Kf5
{[%clk 0:00:03.1]} 78... Qf3+ {[%clk 0:00:30.2]} 79. Ke5 {[%clk 0:00:03.1]}
79... Qf1 {[%clk 0:00:31.1]} 80. Kd4 {[%clk 0:00:03.3]} 80... Qd1+ {[%clk
0:00:30.5]} 81. Ke5 {[%clk 0:00:03.7]} 81... Qe1 {[%clk 0:00:28.6]} 82. Kd4
{[%clk 0:00:03.5]} 82... Qg1+ {[%clk 0:00:26.4]} 83. Ke5 {[%clk 0:00:03.6]}
83... Kd7 {[%clk 0:00:26.4]} 84. Nf6+ {[%clk 0:00:03.3]} 84... Ke7 {[%clk
0:00:26]} 85. Nd5+ {[%clk 0:00:03.7]} 85... Kf7 {[%clk 0:00:26.9]} 86. Nf4
{[%clk 0:00:03.3]} 86... Qe1+ {[%clk 0:00:26.9]} 87. Kf5 {[%clk 0:00:03.6]}
87... Qb1+ {[%clk 0:00:26.1]} 88. Ke5 {[%clk 0:00:03.7]} 88... Qb5+ {[%clk
0:00:25.8]} 89. Ke4 {[%clk 0:00:04]} 89... Kf6 {[%clk 0:00:25.1]} 90. Nd5+
{[%clk 0:00:04.2]} 90... Ke6 {[%clk 0:00:25.1]} 91. Nf4+ {[%clk 0:00:04.7]}
91... Kd6 {[%clk 0:00:25.3]} 92. Kf3 {[%clk 0:00:04.8]} 92... Qf1+ {[%clk
0:00:24.7]} 93. Ke4 {[%clk 0:00:04.9]} 93... Qe1+ {[%clk 0:00:24.4]} 94. Kf5
{[%clk 0:00:05.8]} 94... Qb1+ {[%clk 0:00:23.7]} 95. Kg4 {[%clk 0:00:06.4]}
95... Ke5 {[%clk 0:00:23.5]} 96. Nh3 {[%clk 0:00:02.9]} 96... Ke4 {[%clk
0:00:23]} 97. Ng5+ {[%clk 0:00:02.5]} 97... Ke3 {[%clk 0:00:23.3]} 98. Kh5
{[%clk 0:00:01.8]} 98... Qg1 {[%clk 0:00:23.2]} 99. Kg6 {[%clk 0:00:02.7]} 99...
Kf4 {[%clk 0:00:23.3]} 100. Kh7 {[%clk 0:00:02.5]} 100... Qxg5 {[%clk
0:00:24.2]} 101. Kh8 {[%clk 0:00:03.4]} 101... Kf5 {[%clk 0:00:24.6]} 102. Kh7
{[%clk 0:00:04.3]} 102... Kf6 {[%clk 0:00:24.5]} 103. Kh8 {[%clk 0:00:02.2]}
103... Qg7# {[%clk 0:00:24.9]} 0-1

[Event "*** Titled Tuesday Blitz"]
[Site "Chess.com"]
[Date "2021.03.02"]
[Round "8"]
[White "zacachess"]
[Black "Marty435"]
[Result "0-1"]
[WhiteElo "2435"]
[BlackElo "2553"]
[TimeControl "180+1"]
[EndTime "11:32:22 PST"]
[Termination "Marty435 won by resignation"]

1. e4 {[%clk 0:03:00.9]} 1... c6 {[%clk 0:02:59.6]} 2. d4 {[%clk 0:03:00]} 2...
d5 {[%clk 0:03:00.2]} 3. Nd2 {[%clk 0:03:00.5]} 3... dxe4 {[%clk 0:03:00.3]} 4.
Nxe4 {[%clk 0:03:01.4]} 4... Nf6 {[%clk 0:03:01]} 5. Nxf6+ {[%clk 0:03:01.5]}
5... exf6 {[%clk 0:03:01.9]} 6. c3 {[%clk 0:03:01.4]} 6... Bd6 {[%clk
0:03:02.3]} 7. Bd3 {[%clk 0:03:01.9]} 7... O-O {[%clk 0:03:03]} 8. Ne2 {[%clk
0:03:02.4]} 8... Re8 {[%clk 0:03:03.9]} 9. O-O {[%clk 0:03:02.7]} 9... Nd7
{[%clk 0:03:03.4]} 10. Ng3 {[%clk 0:03:02.3]} 10... Nf8 {[%clk 0:03:02.5]} 11.
Ne4 {[%clk 0:02:53.5]} 11... Be7 {[%clk 0:03:01.1]} 12. Qf3 {[%clk 0:02:19]}
12... Be6 {[%clk 0:02:53]} 13. Ng3 {[%clk 0:02:11.8]} 13... g6 {[%clk
0:02:44.8]} 14. Bd2 {[%clk 0:02:07.6]} 14... f5 {[%clk 0:02:44.6]} 15. Rfe1
{[%clk 0:02:06.5]} 15... Bf6 {[%clk 0:02:29.3]} 16. Ne2 {[%clk 0:01:52.1]} 16...
Bd5 {[%clk 0:02:11.5]} 17. Qh3 {[%clk 0:01:51.5]} 17... b5 {[%clk 0:02:06]} 18.
Nf4 {[%clk 0:01:51.1]} 18... Rxe1+ {[%clk 0:02:00]} 19. Bxe1 {[%clk 0:01:43.7]}
19... Bc4 {[%clk 0:01:54.3]} 20. Bd2 {[%clk 0:01:40.3]} 20... Bg5 {[%clk
0:01:48.5]} 21. b3 {[%clk 0:01:31.8]} 21... Bxd3 {[%clk 0:01:41.8]} 22. Qxd3
{[%clk 0:01:32.7]} 22... Bxf4 {[%clk 0:01:21.4]} 23. Bxf4 {[%clk 0:01:33.6]}
23... Ne6 {[%clk 0:01:22.1]} 24. Be3 {[%clk 0:01:19.4]} 24... a5 {[%clk
0:00:57.1]} 25. Rd1 {[%clk 0:01:18.2]} 25... a4 {[%clk 0:00:57.1]} 26. g3 {[%clk
0:00:54.5]} 26... axb3 {[%clk 0:00:53.9]} 27. axb3 {[%clk 0:00:55.4]} 27... Ra2
{[%clk 0:00:50.2]} 28. d5 {[%clk 0:00:50.3]} 28... Qxd5 {[%clk 0:00:35.2]} 29.
Qxd5 {[%clk 0:00:50.6]} 29... cxd5 {[%clk 0:00:36.1]} 30. Rxd5 {[%clk
0:00:50.9]} 30... Rc2 {[%clk 0:00:29.9]} 31. Rxb5 {[%clk 0:00:38.9]} 31... Rxc3
{[%clk 0:00:30.2]} 32. Rb7 {[%clk 0:00:33.5]} 32... h5 {[%clk 0:00:27.8]} 33. h4
{[%clk 0:00:32.6]} 33... Kg7 {[%clk 0:00:24.5]} 34. b4 {[%clk 0:00:32.7]} 34...
Rb3 {[%clk 0:00:24]} 35. b5 {[%clk 0:00:32.6]} 35... Kf6 {[%clk 0:00:23]} 36. b6
{[%clk 0:00:32.4]} 36... Rb4 {[%clk 0:00:14.4]} 37. Rb8 {[%clk 0:00:23.8]} 37...
f4 {[%clk 0:00:12.6]} 38. gxf4 {[%clk 0:00:21.6]} 38... Kf5 {[%clk 0:00:13.2]}
39. b7 {[%clk 0:00:17.2]} 39... Kg4 {[%clk 0:00:11.9]} 40. Kg2 {[%clk
0:00:16.1]} 40... Nxf4+ {[%clk 0:00:04.8]} 41. Bxf4 {[%clk 0:00:16.1]} 41...
Kxf4 {[%clk 0:00:05.6]} 42. Kg1 {[%clk 0:00:11.2]} 42... Kf3 {[%clk 0:00:04.6]}
43. Kh2 {[%clk 0:00:06.8]} 43... Rxh4+ {[%clk 0:00:04.7]} 44. Kg1 {[%clk
0:00:06.6]} 44... Rg4+ {[%clk 0:00:05.6]} 45. Kf1 {[%clk 0:00:06.1]} 45... Rb4
{[%clk 0:00:06.5]} 46. Ke1 {[%clk 0:00:06]} 46... h4 {[%clk 0:00:06.6]} 47. Rh8
{[%clk 0:00:04.8]} 47... Rb1+ {[%clk 0:00:04.6]} 48. Kd2 {[%clk 0:00:04.3]}
48... Rxb7 {[%clk 0:00:04.6]} 49. Rxh4 {[%clk 0:00:04.3]} 49... Kxf2 {[%clk
0:00:04.9]} 50. Rf4+ {[%clk 0:00:04.5]} 50... Kg3 {[%clk 0:00:05.3]} 51. Rf6
{[%clk 0:00:04.5]} 51... Kg4 {[%clk 0:00:05.7]} 52. Ke3 {[%clk 0:00:04.8]} 52...
Kg5 {[%clk 0:00:06.1]} 53. Rc6 {[%clk 0:00:04.6]} 53... f5 {[%clk 0:00:06.3]}
54. Kf3 {[%clk 0:00:04.2]} 54... Rb3+ {[%clk 0:00:06.8]} 55. Kf2 {[%clk
0:00:04.6]} 55... Kg4 {[%clk 0:00:07.3]} 56. Rxg6+ {[%clk 0:00:03.5]} 56... Kf4
{[%clk 0:00:06.2]} 57. Rc6 {[%clk 0:00:03.9]} 57... Rb2+ {[%clk 0:00:06.6]} 58.
Kf1 {[%clk 0:00:04.3]} 58... Kg3 {[%clk 0:00:05.7]} 59. Rc3+ {[%clk 0:00:02.4]}
59... Kg4 {[%clk 0:00:06]} 60. Rc8 {[%clk 0:00:02.4]} 60... f4 {[%clk
0:00:05.5]} 61. Rf8 {[%clk 0:00:02.4]} 61... Kf3 {[%clk 0:00:04.6]} 62. Kg1
{[%clk 0:00:02.7]} 62... Rg2+ {[%clk 0:00:02]} 63. Kf1 {[%clk 0:00:02.7]} 63...
Rf2+ {[%clk 0:00:02.9]} 64. Kg1 {[%clk 0:00:03]} 64... Ke2 {[%clk 0:00:02]} 65.
Re8+ {[%clk 0:00:02.5]} 65... Kf3 {[%clk 0:00:02.6]} 66. Rf8 {[%clk 0:00:03.4]}
66... Ra2 {[%clk 0:00:02.8]} 67. Kh1 {[%clk 0:00:03.4]} 67... Ra1+ {[%clk
0:00:02.3]} 68. Kh2 {[%clk 0:00:03.1]} 68... Ra7 {[%clk 0:00:03.2]} 69. Rf6
{[%clk 0:00:02.6]} 69... Rh7+ {[%clk 0:00:03.4]} 70. Kg1 {[%clk 0:00:02.2]}
70... Kg3 {[%clk 0:00:04.3]} 71. Rg6+ {[%clk 0:00:01.9]} 71... Kf3 {[%clk
0:00:04.9]} 72. Rf6 {[%clk 0:00:02.4]} 72... Rc7 {[%clk 0:00:05.3]} 73. Rf8
{[%clk 0:00:02.3]} 73... Rc1+ {[%clk 0:00:06.2]} 74. Kh2 {[%clk 0:00:02.8]}
74... Ke3 {[%clk 0:00:05.8]} 75. Re8+ {[%clk 0:00:01.8]} 75... Kf2 {[%clk
0:00:05.7]} 76. Rf8 {[%clk 0:00:02.7]} 76... f3 {[%clk 0:00:06.1]} 77. Kh3
{[%clk 0:00:02.4]} 77... Rh1+ {[%clk 0:00:05.8]} 78. Kg4 {[%clk 0:00:03.3]}
78... Rg1+ {[%clk 0:00:05.8]} 79. Kh3 {[%clk 0:00:02.9]} 79... Ke2 {[%clk
0:00:04.7]} 80. Re8+ {[%clk 0:00:02.2]} 80... Kf1 {[%clk 0:00:04.7]} 81. Rf8
{[%clk 0:00:02.6]} 81... f2 {[%clk 0:00:04.8]} 82. Kh2 {[%clk 0:00:03.1]} 82...
Rg7 {[%clk 0:00:04.4]} 83. Rf6 {[%clk 0:00:03.2]} 83... Rg5 {[%clk 0:00:03.7]}
84. Rf7 {[%clk 0:00:03]} 84... Ke2 {[%clk 0:00:03.9]} 85. Re7+ {[%clk
0:00:02.8]} 85... Kf3 {[%clk 0:00:04.5]} 86. Rf7+ {[%clk 0:00:02.9]} 86... Ke3
{[%clk 0:00:05]} 87. Re7+ {[%clk 0:00:03.2]} 87... Kf3 {[%clk 0:00:02.1]} 88.
Rf7+ {[%clk 0:00:03.4]} 88... Ke2 {[%clk 0:00:02.6]} 89. Re7+ {[%clk 0:00:03.5]}
89... Kf1 {[%clk 0:00:03.1]} 90. Rf7 {[%clk 0:00:03.6]} 90... Rg4 {[%clk
0:00:02.8]} 91. Rf6 {[%clk 0:00:03.7]} 91... Rg2+ {[%clk 0:00:02.9]} 92. Kh1
{[%clk 0:00:03.4]} 92... Rg8 {[%clk 0:00:02.9]} 93. Kh2 {[%clk 0:00:02.4]} 93...
Rh8+ {[%clk 0:00:03.2]} 94. Kg3 {[%clk 0:00:02.5]} 94... Kg1 {[%clk 0:00:03.7]}
95. Rxf2 {[%clk 0:00:01.2]} 95... Rg8+ {[%clk 0:00:04]} 96. Kf3 {[%clk
0:00:01.4]} 96... Rf8+ {[%clk 0:00:04.5]} 97. Ke3 {[%clk 0:00:02.2]} 97... Rxf2
{[%clk 0:00:05.2]} 0-1

[Event "*** Titled Tuesday Blitz"]
[Site "Chess.com"]
[Date "2021.03.02"]
[Round "8"]
[White "rychessmaster1"]
[Black "ChainsOfFantasia"]
[Result "0-1"]
[WhiteElo "2582"]
[BlackElo "2464"]
[TimeControl "180+1"]
[EndTime "11:32:29 PST"]
[Termination "ChainsOfFantasia won by checkmate"]

1. d4 {[%clk 0:03:00.4]} 1... Nf6 {[%clk 0:02:57.5]} 2. Nf3 {[%clk 0:03:01]}
2... d5 {[%clk 0:02:56.1]} 3. c4 {[%clk 0:03:00.9]} 3... e6 {[%clk 0:02:52.6]}
4. Nc3 {[%clk 0:03:01]} 4... a6 {[%clk 0:02:48.7]} 5. cxd5 {[%clk 0:02:58.9]}
5... exd5 {[%clk 0:02:47.6]} 6. Bg5 {[%clk 0:02:58.9]} 6... Be6 {[%clk
0:02:47.2]} 7. e3 {[%clk 0:02:58.1]} 7... h6 {[%clk 0:02:37.1]} 8. Bh4 {[%clk
0:02:58.5]} 8... Nbd7 {[%clk 0:02:29.9]} 9. Rc1 {[%clk 0:02:55.8]} 9... Bd6
{[%clk 0:02:26]} 10. Bd3 {[%clk 0:02:55.1]} 10... O-O {[%clk 0:02:25.2]} 11. O-O
{[%clk 0:02:54]} 11... c6 {[%clk 0:02:23.4]} 12. Qc2 {[%clk 0:02:38.8]} 12...
Bg4 {[%clk 0:02:15.3]} 13. Bf5 {[%clk 0:02:28.3]} 13... Bxf5 {[%clk 0:01:53]}
14. Qxf5 {[%clk 0:02:28.8]} 14... Qe7 {[%clk 0:01:53.2]} 15. Rfe1 {[%clk
0:02:23.3]} 15... Qe6 {[%clk 0:01:50.3]} 16. Qxe6 {[%clk 0:01:47.7]} 16... fxe6
{[%clk 0:01:51.2]} 17. e4 {[%clk 0:01:48.5]} 17... Bb4 {[%clk 0:01:39.1]} 18.
exd5 {[%clk 0:01:39.4]} 18... exd5 {[%clk 0:01:36.4]} 19. Bxf6 {[%clk
0:01:21.2]} 19... Nxf6 {[%clk 0:01:17]} 20. Ne5 {[%clk 0:01:21.6]} 20... Ne4
{[%clk 0:01:11.1]} 21. f3 {[%clk 0:01:22.2]} 21... Nd6 {[%clk 0:00:50.6]} 22.
Re2 {[%clk 0:01:09.6]} 22... Nf5 {[%clk 0:00:46.2]} 23. Rd1 {[%clk 0:01:04]}
23... Ba5 {[%clk 0:00:40.4]} 24. g4 {[%clk 0:00:50.6]} 24... Nd6 {[%clk
0:00:27.2]} 25. Kg2 {[%clk 0:00:46.5]} 25... Rae8 {[%clk 0:00:25.8]} 26. Rf2
{[%clk 0:00:26.8]} 26... Rf4 {[%clk 0:00:20.4]} 27. Ne2 {[%clk 0:00:24.4]} 27...
Rf6 {[%clk 0:00:19.3]} 28. Ng3 {[%clk 0:00:21.1]} 28... Bb6 {[%clk 0:00:17.7]}
29. Nh5 {[%clk 0:00:14.8]} 29... Rff8 {[%clk 0:00:15.6]} 30. Re2 {[%clk
0:00:11.6]} 30... Nb5 {[%clk 0:00:15.1]} 31. f4 {[%clk 0:00:03.7]} 31... Bxd4
{[%clk 0:00:12.7]} 32. Rde1 {[%clk 0:00:02.6]} 32... Bxe5 {[%clk 0:00:11]} 33.
Rxe5 {[%clk 0:00:03.5]} 33... Rxe5 {[%clk 0:00:10.4]} 34. fxe5 {[%clk
0:00:04.4]} 34... Nc7 {[%clk 0:00:09.3]} 35. Kg3 {[%clk 0:00:04.3]} 35... Re8
{[%clk 0:00:08.2]} 36. Nf4 {[%clk 0:00:04.5]} 36... Ne6 {[%clk 0:00:07.4]} 37.
Nxe6 {[%clk 0:00:05.3]} 37... Rxe6 {[%clk 0:00:08.1]} 38. Kf4 {[%clk 0:00:06.2]}
38... Kf7 {[%clk 0:00:07.5]} 39. h4 {[%clk 0:00:06.8]} 39... Re8 {[%clk
0:00:07.3]} 40. h5 {[%clk 0:00:06]} 40... Ke6 {[%clk 0:00:07.5]} 41. g5 {[%clk
0:00:06.1]} 41... Rf8+ {[%clk 0:00:07.8]} 42. Kg4 {[%clk 0:00:07]} 42... Rf5
{[%clk 0:00:07.1]} 43. gxh6 {[%clk 0:00:07.3]} 43... gxh6 {[%clk 0:00:08]} 44.
Kh4 {[%clk 0:00:05.4]} 44... Rg5 {[%clk 0:00:08.9]} 45. b4 {[%clk 0:00:02.3]}
45... Rxe5 {[%clk 0:00:07.9]} 46. Rg1 {[%clk 0:00:03]} 46... Re4+ {[%clk
0:00:08]} 47. Kh3 {[%clk 0:00:03.8]} 47... Rxb4 {[%clk 0:00:08.2]} 48. Rg6+
{[%clk 0:00:04.4]} 48... Kf5 {[%clk 0:00:08.6]} 49. Rxh6 {[%clk 0:00:05.3]}
49... Ra4 {[%clk 0:00:07.4]} 50. Rh7 {[%clk 0:00:05.9]} 50... b5 {[%clk
0:00:06.4]} 51. Rc7 {[%clk 0:00:06.6]} 51... Rc4 {[%clk 0:00:03.7]} 52. h6
{[%clk 0:00:06.8]} 52... Rc1 {[%clk 0:00:03]} 53. h7 {[%clk 0:00:07]} 53... Rh1+
{[%clk 0:00:02.7]} 54. Kg2 {[%clk 0:00:07.9]} 54... Rh6 {[%clk 0:00:03]} 55.
Rxc6 {[%clk 0:00:07.2]} 55... Rxh7 {[%clk 0:00:02.9]} 56. Rxa6 {[%clk 0:00:08]}
56... Ke4 {[%clk 0:00:03]} 57. Kf2 {[%clk 0:00:08.7]} 57... Rc7 {[%clk
0:00:02.8]} 58. Ke2 {[%clk 0:00:09.3]} 58... Rc2+ {[%clk 0:00:03.2]} 59. Kd1
{[%clk 0:00:10.2]} 59... Rc5 {[%clk 0:00:03.7]} 60. Re6+ {[%clk 0:00:11]} 60...
Kd4 {[%clk 0:00:03.8]} 61. Ra6 {[%clk 0:00:11.9]} 61... Kc4 {[%clk 0:00:03.9]}
62. Kd2 {[%clk 0:00:12.5]} 62... b4 {[%clk 0:00:04.3]} 63. Rh6 {[%clk
0:00:12.8]} 63... Ra5 {[%clk 0:00:04.1]} 64. Rh4+ {[%clk 0:00:13]} 64... d4
{[%clk 0:00:04.3]} 65. Rh8 {[%clk 0:00:12.9]} 65... Rxa2+ {[%clk 0:00:04.7]} 66.
Kc1 {[%clk 0:00:13.7]} 66... Rg2 {[%clk 0:00:05.1]} 67. Rc8+ {[%clk 0:00:13.6]}
67... Kb3 {[%clk 0:00:05.1]} 68. Rh8 {[%clk 0:00:12.1]} 68... d3 {[%clk
0:00:04.5]} 69. Rd8 {[%clk 0:00:11.3]} 69... Rc2+ {[%clk 0:00:03.2]} 70. Kd1
{[%clk 0:00:11.9]} 70... Rc3 {[%clk 0:00:03.3]} 71. Kd2 {[%clk 0:00:12.1]} 71...
Kb2 {[%clk 0:00:03]} 72. Rb8 {[%clk 0:00:09.7]} 72... b3 {[%clk 0:00:02]} 73.
Rb7 {[%clk 0:00:10.5]} 73... Rc2+ {[%clk 0:00:01]} 74. Kxd3 {[%clk 0:00:11.3]}
74... Rc6 {[%clk 0:00:01.1]} 75. Rb8 {[%clk 0:00:12.2]} 75... Ka2 {[%clk
0:00:01.1]} 76. Kd4 {[%clk 0:00:13.1]} 76... b2 {[%clk 0:00:01.2]} 77. Ra8+
{[%clk 0:00:14]} 77... Kb1 {[%clk 0:00:01]} 78. Rb8 {[%clk 0:00:14.9]} 78... Rc1
{[%clk 0:00:01.2]} 79. Kd3 {[%clk 0:00:15.8]} 79... Rc2 {[%clk 0:00:02.1]} 80.
Rh8 {[%clk 0:00:15.4]} 80... Rc1 {[%clk 0:00:03]} 81. Rh5 {[%clk 0:00:15.9]}
81... Rc6 {[%clk 0:00:03.2]} 82. Ra5 {[%clk 0:00:16.2]} 82... Kc1 {[%clk
0:00:03]} 83. Rh5 {[%clk 0:00:10.8]} 83... b1=Q+ {[%clk 0:00:03.2]} 84. Kd4
{[%clk 0:00:11.6]} 84... Qb4+ {[%clk 0:00:03.2]} 85. Ke3 {[%clk 0:00:12.5]}
85... Rc3+ {[%clk 0:00:03.3]} 86. Ke2 {[%clk 0:00:13.3]} 86... Qe4+ {[%clk
0:00:03.3]} 87. Kf2 {[%clk 0:00:14.1]} 87... Rf3+ {[%clk 0:00:03.7]} 88. Kg2
{[%clk 0:00:13.7]} 88... Qg4+ {[%clk 0:00:04.1]} 89. Kh2 {[%clk 0:00:14.6]}
89... Rf2+ {[%clk 0:00:04.2]} 90. Kh1 {[%clk 0:00:14.9]} 90... Qg2# {[%clk
0:00:04.7]} 0-1